{"text_format":"1","workbook":"xlsx","n_sheets":3,"sheets":["база","ТЕСТ","РЕЗУЛЬТАТЫ"],"not_rendered":{"charts":0,"images":1,"macros":1,"external_links":0,"defined_names":0,"comments":0,"pivot_tables":0},"unopened":[],"bounds":{"document_bytes":16777216,"sheet_cells":100000,"rows_first":2000,"rows_last":500,"rows_between":2000,"halvings":0,"cell_chars":16384,"cell_head_chars":4096},"cells_cut":0,"cells_raw":0,"read":"whole","date_system":"1900"}

{"sheet":"база","index":0,"n_rows":13,"n_cols":6,"rows_kept":13,"cut":false,"hidden":true,"merged":[]}
[]
[null,"ТекстВопроса","ТекстОтвета1","ТекстОтвета2","ТекстОтвета3","ТекстОтвета4"]
[1,"Выберите один вариант ответа. Для чего применяются каналы связи?","Для построения компьютерных сетей","Для характеристики данных","Для параметра искажений передаваемой ин-формации ","Для пропускной способности "]
[{"$f":"A3+1","v":2},"Выберите один вариант ответа. На какие виды подразделяют каналы связи по направлению?","Симплексные и дуплексные ","Выделенные и коммутированные ","Цифровые и аналоговые ","Кабельные и телефонные"]
[{"$f":"A4+1","v":3},"Выберите несколько вариантов ответов. На какие виды подразделяются каналы связи по способу коммуникации?","Выделенные","Аналоговые","Кабельные","Коммутируемые"]
[4,"Выберите один вариант ответа. Какова скорость оптоволоконного кабеля в Мбит/сек?",1024,8,2,3072]
[5,"Выберите один вариант ответа. На каком расстоянии (в метрах) действует Bluetoth?(В ответе укажите цифру или число)","100 метров","10 метров","1 километр"]
[{"$f":"A7+1","v":6},"Выберите один вариант ответа.Выберите,что должно стоять на месте пропуска:Источник информации---_______---канал связи---приемник---потребитель информации","Передатчик","сигнал","сообщение","линия"]
[7,"Выберите несколько вариантов ответов. На какие виды подразделяются каналы связи по способу кодирования?","Симплексные","Полиустойчивые","Цифровые","Аналоговые"]
[8,"Выберите один вариант ответа. Параметр какого значения задает помехоустойчи-вость?","Размера информации","Искажения передаваемой информации","Среды передачи данных ","Источника информации "]
[9,"Выберите один вариант ответа. Что используют беспроводные линии связи?","кабели","Провода","Передатчик","Электромагнитные волны"]
[{"$f":"A11+1","v":10},"Выберите один вариант ответа. Какие бывают проводные кабели?","Спутниковые ","Беспроводные","Телефонные ","Радиоканальные"]
[11,"Выберите несколько вариантов ответов. Что включают каналы связи?","Симплексную информацию ","Линии связи","Аппаратуру передачи данных","Гарнитуру"]

{"sheet":"ТЕСТ","index":1,"n_rows":13,"n_cols":3,"rows_kept":13,"cut":false,"hidden":false,"merged":[[1,2,1,5],[0,0,0,5],[10,2,10,5],[11,2,11,5],[2,2,2,5],[3,2,3,5],[5,2,5,5],[6,2,6,5],[7,2,7,5],[9,2,9,5]]}
["ТЕСТ ПО ТЕМЕ \"КЛАССИФИКАЦИЯ КАНАЛОВ СВЯЗИ\""]
["№ задания","Вопрос","Варианты ответов"]
[{"$f":"база!A3","v":1},{"$f":"база!B3","v":"Выберите один вариант ответа. Для чего применяются каналы связи?"}]
[{"$f":"база!A4","v":2},{"$f":"база!B4","v":"Выберите один вариант ответа. На какие виды подразделяют каналы связи по направлению?"}]
[{"$f":"база!A5","v":3},{"$f":"база!B5","v":"Выберите несколько вариантов ответов. На какие виды подразделяются каналы связи по способу коммуникации?"}]
[{"$f":"база!A6","v":4},{"$f":"база!B6","v":"Выберите один вариант ответа. Какова скорость оптоволоконного кабеля в Мбит/сек?"}]
[{"$f":"база!A7","v":5},{"$f":"база!B7","v":"Выберите один вариант ответа. На каком расстоянии (в метрах) действует Bluetoth?(В ответе укажите цифру или число)"}]
[{"$f":"база!A8","v":6},{"$f":"база!B8","v":"Выберите один вариант ответа.Выберите,что должно стоять на месте пропуска:Источник информации---_______---канал связи---приемник---потребитель информации"}]
[{"$f":"база!A9","v":7},{"$f":"база!B9","v":"Выберите несколько вариантов ответов. На какие виды подразделяются каналы связи по способу кодирования?"}]
[{"$f":"база!A10","v":8},{"$f":"база!B10","v":"Выберите один вариант ответа. Параметр какого значения задает помехоустойчи-вость?"}]
[{"$f":"база!A11","v":9},{"$f":"база!B11","v":"Выберите один вариант ответа. Что используют беспроводные линии связи?"}]
[{"$f":"база!A12","v":10},{"$f":"база!B12","v":"Выберите один вариант ответа. Какие бывают проводные кабели?"}]
[{"$f":"база!A13","v":11},{"$f":"база!B13","v":"Выберите несколько вариантов ответов. Что включают каналы связи?"}]

{"sheet":"РЕЗУЛЬТАТЫ","index":2,"n_rows":18,"n_cols":11,"rows_kept":18,"cut":false,"hidden":true,"merged":[[9,1,9,3],[10,1,10,3],[11,1,11,3],[1,1,1,3],[2,1,2,3],[3,1,3,3],[5,1,5,3],[7,1,7,3]]}
[null,null,null,null,null,null,{"$f":"IF(OR(ТЕСТ!C5=РЕЗУЛЬТАТЫ!C5,ТЕСТ!C5=РЕЗУЛЬТАТЫ!B5),1,IF(ТЕСТ!C5=\"\",0,-1))","v":0},{"$f":"IF(OR(ТЕСТ!D5=РЕЗУЛЬТАТЫ!B5,ТЕСТ!D5=РЕЗУЛЬТАТЫ!C5),1,IF(ТЕСТ!D5=\"\",0,-1))","v":0},{"$f":"IF(OR(ТЕСТ!E5=РЕЗУЛЬТАТЫ!B5,ТЕСТ!E5=РЕЗУЛЬТАТЫ!C5),1,IF(ТЕСТ!E5=\"\",0,-1))","v":0},{"$f":"IF(OR(ТЕСТ!F5=РЕЗУЛЬТАТЫ!B5,ТЕСТ!F5=РЕЗУЛЬТАТЫ!C5),1,IF(ТЕСТ!F5=\"\",0,-1))","v":0},{"$f":"SUM(G1:J1)","v":0}]
["№ п/п","ОТВЕТЫ",null,null,"БАЛЛЫ",null,{"$f":"база!$C$5","v":"Выделенные"},{"$f":"база!$D$5","v":"Аналоговые"},{"$f":"база!$E$5","v":"Кабельные"},{"$f":"база!$F$5","v":"Коммутируемые"}]
[{"$f":"база!A3","v":1},{"$f":"база!C3","v":"Для построения компьютерных сетей"},null,null,{"$f":"IF(ТЕСТ!C3=РЕЗУЛЬТАТЫ!B3,1,0)","v":0},null,{"$f":"COUNTIF(ТЕСТ!C5:F5,B5)","v":0},{"$f":"COUNTIF(ТЕСТ!C5:F5,H2)","v":0},{"$f":"COUNTIF(ТЕСТ!C5:F5,I2)","v":0},{"$f":"COUNTIF(ТЕСТ!C5:F5,J2)","v":0}]
[{"$f":"база!A4","v":2},{"$f":"база!C4","v":"Симплексные и дуплексные "},null,null,{"$f":"IF(ТЕСТ!C4=РЕЗУЛЬТАТЫ!B4,1,0)","v":0},null,{"$f":"IF(OR(ТЕСТ!C9=РЕЗУЛЬТАТЫ!$B$9,ТЕСТ!C9=РЕЗУЛЬТАТЫ!$C$9),1,IF(ТЕСТ!C9=\"\",0,-1))","v":0},{"$f":"IF(OR(ТЕСТ!D9=РЕЗУЛЬТАТЫ!$B$9,ТЕСТ!D9=РЕЗУЛЬТАТЫ!$C$9),1,IF(ТЕСТ!D9=\"\",0,-1))","v":0},{"$f":"IF(OR(ТЕСТ!E9=РЕЗУЛЬТАТЫ!$B$9,ТЕСТ!E9=РЕЗУЛЬТАТЫ!$C$9),1,IF(ТЕСТ!E9=\"\",0,-1))","v":0},{"$f":"IF(OR(ТЕСТ!F9=РЕЗУЛЬТАТЫ!$B$9,ТЕСТ!F9=РЕЗУЛЬТАТЫ!$C$9),1,IF(ТЕСТ!F9=\"\",0,-1))","v":0},{"$f":"SUM(G4:J4)","v":0}]
[{"$f":"база!A5","v":3},{"$f":"база!C5","v":"Выделенные"},{"$f":"база!F5","v":"Коммутируемые"},null,{"$f":"IF(K1>2,IF(AND(G3>=1,J3>=1),2,1),K1)","v":0},null,{"$f":"база!C9","v":"Симплексные"},{"$f":"база!D9","v":"Полиустойчивые"},{"$f":"база!E9","v":"Цифровые"},{"$f":"база!F9","v":"Аналоговые"}]
[{"$f":"база!A6","v":4},{"$f":"база!F6","v":3072},null,null,{"$f":"IF(ТЕСТ!C6=РЕЗУЛЬТАТЫ!B6,1,0)","v":0},null,{"$f":"COUNTIF(ТЕСТ!$C9:$F9,G5)","v":0},{"$f":"COUNTIF(ТЕСТ!$C9:$F9,H5)","v":0},{"$f":"COUNTIF(ТЕСТ!$C9:$F9,I5)","v":0},{"$f":"COUNTIF(ТЕСТ!$C9:$F9,J5)","v":0}]
[{"$f":"база!A7","v":5},{"$f":"база!C7","v":"100 метров"},{"$f":"база!D7","v":"10 метров"},null,{"$f":"IF(OR(ТЕСТ!C7=РЕЗУЛЬТАТЫ!B7,ТЕСТ!C7=РЕЗУЛЬТАТЫ!C7),1,0)","v":0},null,{"$f":"IF(OR(ТЕСТ!C13=РЕЗУЛЬТАТЫ!$B$13,ТЕСТ!C13=РЕЗУЛЬТАТЫ!$C$13),1,IF(ТЕСТ!C13=\"\",0,-1))","v":0},{"$f":"IF(OR(ТЕСТ!D13=РЕЗУЛЬТАТЫ!$B$13,ТЕСТ!D13=РЕЗУЛЬТАТЫ!$C$13),1,IF(ТЕСТ!D13=\"\",0,-1))","v":0},{"$f":"IF(OR(ТЕСТ!E13=РЕЗУЛЬТАТЫ!$B$13,ТЕСТ!E13=РЕЗУЛЬТАТЫ!$C$13),1,IF(ТЕСТ!E13=\"\",0,-1))","v":0},{"$f":"IF(OR(ТЕСТ!F13=РЕЗУЛЬТАТЫ!$B$13,ТЕСТ!F13=РЕЗУЛЬТАТЫ!$C$13),1,IF(ТЕСТ!F13=\"\",0,-1))","v":0},{"$f":"SUM(G7:J7)","v":0}]
[{"$f":"база!A8","v":6},{"$f":"база!C8","v":"Передатчик"},null,null,{"$f":"IF(ТЕСТ!C8=РЕЗУЛЬТАТЫ!B8,1,0)","v":0},null,{"$f":"база!C13","v":"Симплексную информацию "},{"$f":"база!D13","v":"Линии связи"},{"$f":"база!E13","v":"Аппаратуру передачи данных"},{"$f":"база!F13","v":"Гарнитуру"}]
[{"$f":"база!A9","v":7},{"$f":"база!E9","v":"Цифровые"},{"$f":"база!F9","v":"Аналоговые"},null,{"$f":"IF(K4>2,IF(AND(I6>=1,J6>=1),2,1),K4)","v":0},null,{"$f":"COUNTIF(ТЕСТ!$C$13:$F$13,G8)","v":0},{"$f":"COUNTIF(ТЕСТ!$C$13:$F$13,H8)","v":0},{"$f":"COUNTIF(ТЕСТ!$C$13:$F$13,I8)","v":0},{"$f":"COUNTIF(ТЕСТ!$C$13:$F$13,J8)","v":0}]
[{"$f":"база!A10","v":8},{"$f":"база!D10","v":"Искажения передаваемой информации"},null,null,{"$f":"IF(ТЕСТ!C10=РЕЗУЛЬТАТЫ!B10,1,0)","v":0}]
[{"$f":"база!A11","v":9},{"$f":"база!F11","v":"Электромагнитные волны"},null,null,{"$f":"IF(ТЕСТ!C11=РЕЗУЛЬТАТЫ!B11,1,0)","v":0}]
[{"$f":"база!A12","v":10},{"$f":"база!E12","v":"Телефонные "},null,null,{"$f":"IF(ТЕСТ!C12=РЕЗУЛЬТАТЫ!B12,1,0)","v":0}]
[{"$f":"база!A13","v":11},{"$f":"база!D13","v":"Линии связи"},{"$f":"база!E13","v":"Аппаратуру передачи данных"},null,{"$f":"IF(K7>2,IF(AND(H9>=1,I9>=1),2,1),K7)","v":0}]
[null,null,null,null,{"$f":"SUM(E3:E13)","v":0}]
[]
[null,"РЕЗУЛЬТАТ:",{"$f":"IF(E14/14>=0.9,\"ВАША ОЦЕНКА ОТЛИЧНО\",IF(E14/14>=0.8,\"ВАША ОЦЕНКА ХОРОШО!\",IF(E14/14>=0.7,\"ВАША ОЦЕНКА УДОВЛЕТВОРИТЕЛЬНО\",\"ВАША ОЦЕНКА НЕУДОВЛЕТВОРИТЕЛЬНО\")))","v":"ВАША ОЦЕНКА НЕУДОВЛЕТВОРИТЕЛЬНО"}]
[null,"КОЛИЧЕСТВО БАЛЛОВ ИЗ 14 ВОЗМОЖНЫХ:",{"$f":"COUNTIF(E3:E13,1)","v":0}]
[null,"НЕВЕРНЫЕ ОТВЕТЫ:"]